bitfinex/quotes_ETHUSD_20251217
["timestamp","ask_amount","ask_price","bid_price","bid_amount"]
[1765962727000,0.3699,2932.3,2931.6,7.27751312]
[1765962727725,0.3699,2932.3,2931.6,6.82221312]
[1765962727923,0.74791332,2932.2,2931.6,6.82221312]
[1765962728815,0.37801332,2932.2,2931.6,7.27751312]
[1765962729015,0.37801332,2932.2,2931.7,0.4553]
[1765962729410,0.37801332,2932.2,2931.8,3.86617386]
[1765962729812,0.37801332,2932.2,2931.8,0.4553]
[1765962730000,0.37883667,2932.1,2931.8,0.4553]
[1765962730204,3.41035399,2932.3,2931.7,3.41093256]
[1765962730517,3.41035399,2932.3,2931.8,0.4553]
[1765962731299,6.82070798,2932.3,2931.8,0.4553]
[1765962731499,4.56233173,2932.3,2931.4,0.4553]
[1765962731722,0.79725077,2932.2,2931.5,3.86646629]
[1765962733034,0.79725077,2932.2,2931.6,0.4553]
[1765962733219,1.16715077,2932.2,2931.6,3.86640476]
[1765962733419,3.41052487,2932.1,2931.6,3.41110476]
[1765962733614,3.41052487,2932.1,2931.7,0.4553]
[1765962733814,0.42077756,2932.0,2931.9,0.489]
[1765962734926,0.42077756,2932.0,2931.9,0.9443]
[1765962735936,3.83141876,2932.0,2931.9,0.9443]
[1765962736138,7.96135996,2932.0,2931.6,0.4553]
[1765962738341,4.19610747,2931.9,2931.3,0.4573]
[1765962738517,1.19791674,2931.8,2931.3,0.4573]
[1765962738715,1.19791674,2931.8,2931.7,0.489]
[1765962740227,1.37621674,2931.8,2931.7,0.489]
[1765962740426,1.37621674,2931.8,2931.5,0.4573]
[1765962740625,6.82198042,2931.7,2931.5,0.4573]
[1765962740940,0.80198972,2931.6,2931.5,0.9463]
[1765962741123,1.34298972,2931.6,2931.5,0.9463]
[1765962741517,5.53909719,2931.6,2931.5,0.9463]
[1765962742020,5.53909719,2931.6,2931.5,0.491]
[1765962742635,4.75409628,2931.6,2931.5,0.9463]
[1765962743033,4.75409628,2931.6,2931.5,0.491]
[1765962744141,4.75329628,2931.6,2931.5,0.491]
[1765962744560,4.75329628,2931.6,2931.5,0.9463]
[1765962747834,4.75329628,2931.6,2931.5,0.491]
[1765962749758,4.93159628,2931.6,2931.5,0.002]
[1765962750257,4.75329628,2931.6,2931.5,0.002]
[1765962750620,4.75329628,2931.6,2931.5,0.491]
[1765962753071,4.75329628,2931.6,2931.5,0.002]
[1765962753072,4.93349628,2931.6,2931.5,0.002]
[1765962753269,40.07957314,2931.6,2931.5,0.002]
[1765962753559,0.3699,2931.1,2930.3,0.4573]
[1765962753781,0.1801,2930.8,2930.3,0.4573]
[1765962754058,0.55,2930.8,2930.3,0.002]
[1765962754360,0.1783,2930.5,2930.3,0.002]
[1765962754536,7.59878088,2931.1,2930.6,0.4866]
[1765962754739,1.30087809,2931.0,2930.6,0.4866]
[1765962754949,1.30087809,2931.0,2930.4,0.4598]
[1765962754950,0.1783,2930.7,2930.4,0.002]
[1765962755151,0.541,2930.6,2930.4,0.002]
[1765962755566,0.1802,2930.5,2930.4,0.002]
[1765962755929,4.74240747,2930.5,2930.4,0.002]
[1765962756452,8.15479443,2930.5,2930.4,0.002]
[1765962756647,3.95868696,2930.5,2930.4,0.002]
[1765962756852,5.16949435,2930.5,2930.4,0.002]
[1765962759460,4.80339435,2930.5,2930.4,0.002]
[1765962759664,1.75180739,2930.5,2930.4,0.4701]
[1765962759876,4.13168696,2930.5,2930.4,0.002]
[1765962760364,4.49968696,2930.5,2930.4,0.002]
[1765962760866,4.13168696,2930.5,2930.4,0.002]
[1765962761066,0.7193,2930.5,2930.4,0.002]
[1765962761300,1.1324629,2930.5,2930.4,0.002]
[1765962761762,4.54484986,2930.5,2930.4,0.002]
[1765962763740,1.1324629,2930.5,2930.4,0.002]
[1765962763940,0.9541629,2930.5,2930.4,0.9336]
[1765962764866,4.36654986,2930.5,2930.4,0.9336]
[1765962765044,4.36654986,2930.5,2930.4,0.4701]
[1765962765561,4.54674986,2930.5,2930.4,0.4701]
[1765962766152,1.1324629,2930.5,2930.4,0.002]
[1765962766467,3.41215409,2930.7,2930.4,0.002]
[1765962766673,0.541,2930.5,2930.4,0.9336]
[1765962766868,1.0873,2930.5,2930.4,0.002]
[1765962767062,1.87846259,2930.5,2930.4,0.002]
[1765962767766,1.51046259,2930.5,2930.4,0.002]
[1765962768070,4.92284955,2930.5,2930.4,0.002]
[1765962768274,4.92204955,2930.5,2930.4,0.002]
[1765962771878,5.29004955,2930.5,2930.4,0.002]
[1765962773753,9.89166102,2930.5,2930.4,0.002]
[1765962776661,0.96946259,2930.5,2930.4,0.002]
[1765962776865,0.96946259,2930.5,2930.4,0.4701]
[1765962776866,0.541,2930.5,2930.4,0.4701]
[1765962777253,0.7193,2930.5,2930.4,0.002]
[1765962778080,4.13168696,2930.5,2930.4,0.002]
[1765962779483,4.49968696,2930.5,2930.4,0.002]
[1765962779683,6.11600226,2930.5,2930.4,0.002]
[1765962781702,10.31698862,2930.5,2930.4,0.002]
[1765962783098,10.31798862,2930.5,2930.4,0.002]
[1765962783578,10.49643038,2930.5,2930.4,0.002]
[1765962784997,5.92744402,2930.5,2930.4,0.002]
[1765962785386,2.51505706,2930.5,2930.4,0.002]
[1765962785563,4.17563272,2930.5,2930.4,0.002]
[1765962785768,4.71663272,2930.5,2930.4,0.002]
[1765962786578,5.08463272,2930.5,2930.4,0.002]
[1765962786973,0.72044176,2930.5,2930.4,0.5012]
[1765962787287,0.72044176,2930.5,2930.4,0.9638]
[1765962787288,0.542,2930.5,2930.4,0.9638]
[1765962787981,0.001,2930.5,2930.4,0.9638]
[1765962789499,0.001,2930.5,2930.4,0.5012]
[1765962789805,0.1793,2930.5,2930.4,0.002]
[1765962791808,0.001,2930.5,2930.4,0.5012]
[1765962792101,0.0002,2930.5,2930.4,0.5012]
[1765962792611,0.0002,2930.5,2930.4,0.9638]
[1765962792775,0.0002,2930.5,2930.4,0.5012]
[1765962794115,0.1785,2930.5,2930.4,0.002]
[1765962795184,0.5465,2930.5,2930.4,0.002]
[1765962795514,0.1785,2930.5,2930.4,0.002]
[1765962796595,0.0002,2930.5,2930.4,0.5012]
[1765962797578,0.0002,2930.5,2930.4,3.91370341]
[1765962798419,0.0002,2930.5,2930.4,0.5012]
[1765962798916,0.0002,2930.5,2930.4,3.91370341]
[1765962799291,0.0002,2930.5,2930.4,4.37630341]
[1765962799594,0.0002,2930.5,2930.4,0.002]
[1765962799910,0.0002,2930.5,2930.4,0.4646]
[1765962800411,0.0002,2930.5,2930.4,8.90485639]
[1765962800613,0.0002,2930.5,2930.4,8.87073136]
[1765962801180,0.0002,2930.5,2930.4,9.87611159]
[1765962801390,0.0002,2930.5,2930.4,9.08762864]
[1765962803211,0.0002,2930.5,2930.4,13.288615]
[1765962806417,0.0002,2930.5,2930.4,13.28121224]
[1765962808203,0.0002,2930.5,2930.4,13.4595788]
[1765962810615,0.0002,2930.5,2930.4,13.87535994]
[1765962816196,0.0004,2931.1,2931.0,1.1343]
[1765962816397,0.0004,2931.1,2931.0,10.05706996]
[1765962816627,0.0004,2931.1,2931.0,11.06277696]
[1765962818145,0.0004,2931.1,2931.0,14.4745818]
[1765962819022,0.0004,2931.1,2931.0,14.93896203]
[1765962820847,0.0004,2931.1,2931.0,15.42936203]
[1765962822424,0.0004,2931.1,2931.0,15.43136203]
[1765962823656,0.0004,2931.1,2931.0,7.03679207]
[1765962823970,0.0004,2931.1,2931.0,6.49579207]
[1765962824134,0.0004,2931.1,2931.0,4.92530484]
[1765962824338,0.0004,2931.1,2931.0,8.63028982]
[1765962825626,0.0004,2931.1,2931.0,9.12258982]
[1765962826857,0.0004,2931.1,2931.0,9.58697005]
[1765962828561,0.0004,2931.1,2931.0,5.38968507]
[1765962828761,0.0004,2931.1,2931.0,10.50539946]
[1765962830060,0.0004,2931.1,2931.0,14.70268444]
[1765962831962,0.0004,2931.1,2931.0,14.23830421]
[1765962833928,0.0004,2931.1,2931.0,14.70268444]
[1765962834330,0.0004,2931.1,2931.0,14.83938586]
[1765962834759,0.0004,2931.1,2931.0,14.29938586]
[1765962834960,0.0004,2931.1,2931.0,14.70268444]
[1765962840163,0.1656,2931.5,2931.4,4.19728498]
[1765962840369,0.1656,2931.5,2931.0,16.84980914]
[1765962840370,0.0038,2931.3,2931.2,4.73728498]
[1765962840740,0.0038,2931.3,2931.2,3.41157205]
[1765962840938,0.3865,2931.3,2931.2,3.41157205]
[1765962841169,0.0038,2931.3,2931.2,3.41157205]
[1765962841866,0.0038,2931.3,2931.2,7.60885703]
[1765962842066,0.3827,2931.6,2931.2,11.02042908]
[1765962843459,0.3827,2931.6,2931.2,10.23471615]
[1765962843661,0.0006,2931.7,2931.2,14.43095376]
[1765962844174,0.001,2931.5,2931.2,11.51168171]
[1765962844354,0.001,2931.5,2931.2,12.58648205]
[1765962844556,0.001,2931.5,2931.2,12.58558205]
[1765962847073,0.001,2931.5,2931.4,0.459]
[1765962847273,0.1666,2931.5,2931.4,0.459]
[1765962847469,0.1666,2931.5,2931.2,12.09418205]
[1765962847640,0.1666,2931.5,2931.2,12.58558205]
[1765962848880,0.1666,2931.5,2931.2,11.51078171]
[1765962849975,0.1666,2931.5,2931.2,11.01938171]
[1765962850178,0.1666,2931.5,2931.2,6.8231441]
[1765962851071,0.1666,2931.5,2931.2,11.01938171]
[1765962851280,0.001,2931.5,2931.3,0.4914]
[1765962852686,0.1666,2931.5,2931.4,3.41133929]
[1765962855891,0.001,2931.5,2931.4,0.9504]
[1765962856080,0.001,2931.5,2931.4,2.08641525]
[1765962856404,0.001,2931.5,2931.4,2.05230186]
[1765962857688,0.001,2931.5,2931.4,1.56090186]
[1765962858072,0.001,2931.5,2931.4,4.97224115]
[1765962858768,0.001,2931.5,2931.4,5.46364115]
[1765962864403,0.0002,2931.5,2931.4,5.47391829]
[1765962866270,0.0002,2931.5,2931.4,5.94029852]
[1765962866869,0.0002,2931.5,2931.4,5.97441191]
[1765962867773,0.0002,2931.5,2931.4,10.57615352]
[1765962868099,0.0002,2931.5,2931.4,10.67871213]
[1765962868297,0.0002,2931.5,2931.4,6.48247452]
[1765962871171,0.0002,2931.5,2931.4,7.02247452]
[1765962871899,0.0002,2931.5,2931.4,6.48247452]
[1765962872100,0.0002,2931.5,2931.4,11.21871213]
[1765962877108,0.0002,2931.5,2931.4,6.47002138]
[1765962877404,0.0002,2931.5,2931.4,4.82811952]
[1765962877601,0.0002,2931.5,2931.4,5.36811952]
[1765962878401,0.0002,2931.5,2931.4,5.504813]
[1765962882504,0.0002,2931.5,2931.4,4.964813]
[1765962882680,0.0002,2931.5,2931.4,5.504813]
[1765962886313,0.0002,2931.5,2931.4,6.81595174]
[1765962888303,0.3827,2932.2,2931.6,0.4819]
[1765962888618,0.3827,2932.2,2931.7,10.23297063]
[1765962889810,0.1656,2931.8,2931.7,3.41099021]
[1765962890395,0.1656,2931.8,2931.6,0.1656]
[1765962893313,0.3806,2932.0,2931.7,6.82198042]
[1765962894014,0.001,2931.8,2931.7,3.41099021]
[1765962894317,0.001,2931.8,2931.7,3.88859021]
[1765962897312,0.001,2931.8,2931.7,4.37049021]
[1765962898693,0.001,2931.8,2931.7,4.75319021]
[1765962899001,0.001,2931.8,2931.7,5.18691849]
[1765962900392,0.001,2931.8,2931.7,3.88859021]
[1765962901003,0.001,2931.8,2931.7,4.37049021]
[1765962902009,0.001,2931.8,2931.7,4.75319021]
[1765962902723,0.001,2931.8,2931.7,4.37049021]
[1765962906235,0.001,2931.8,2931.7,8.5993045]
[1765962906403,0.001,2931.8,2931.7,10.22500246]
[1765962907131,0.001,2931.8,2931.7,11.25002496]
[1765962908201,0.001,2931.8,2931.7,7.05532057]
[1765962908434,0.001,2931.8,2931.7,11.25002496]
[1765962909199,0.001,2931.8,2931.7,11.71440519]
[1765962912237,0.0002,2931.8,2931.7,11.71160519]
[1765962912939,0.0002,2931.8,2931.7,12.11710919]
[1765962913145,0.0002,2932.6,2932.3,0.497]
[1765962913365,0.0002,2932.6,2932.5,4.19470439]
[1765962913502,0.0002,2932.6,2932.5,8.38940878]
[1765962913707,0.001,2933.9,2933.4,0.6881]
[1765962913922,0.1841,2933.9,2933.4,4.19470439]
[1765962914235,0.1841,2933.9,2933.3,0.497]
[1765962914434,0.5698,2933.9,2933.4,0.9257]
[1765962914639,0.5698,2933.9,2933.4,4.33471343]
[1765962915133,0.5698,2933.9,2933.4,4.83171343]
[1765962915509,0.5698,2933.9,2933.4,9.48611782]
[1765962916152,0.1841,2933.9,2933.4,5.29141343]
[1765962916476,0.1841,2933.9,2933.4,9.48611782]
[1765962917450,0.001,2933.9,2933.4,9.48611782]
[1765962918817,0.3867,2933.9,2933.4,4.79441343]
[1765962919037,0.3867,2933.9,2933.4,4.40871343]
[1765962920170,0.3867,2933.9,2933.4,3.86871343]
[1765962920368,0.1636,2933.5,2933.4,3.94901343]
[1765962921854,0.1636,2933.5,2933.4,3.40901343]
[1765962922779,0.5471,2933.5,2933.4,3.40901343]
[1765962923066,0.3857,2933.3,2933.2,3.40924587]
[1765962924865,0.001,2933.5,2933.2,11.96989613]
[1765962925185,0.001,2933.5,2933.4,8.56041782]
[1765962925867,0.001,2933.5,2933.4,4.36571343]
[1765962926264,0.001,2933.5,2933.4,9.02479805]
[1765962926587,0.001,2933.5,2933.4,11.17302856]
[1765962926983,0.001,2933.5,2933.4,11.71302856]
[1765962927186,0.001,2933.5,2933.4,11.17302856]
[1765962927376,0.001,2933.5,2933.4,11.71302856]
[1765962928065,0.001,2933.5,2933.4,11.17302856]
[1765962928271,0.001,2933.5,2933.4,11.71302856]
[1765962928474,0.001,2933.5,2933.4,10.21632856]
[1765962928672,0.001,2933.5,2933.4,3.79471343]
[1765962928882,0.001,2933.5,2933.4,4.75141343]
[1765962930695,0.001,2933.5,2933.4,5.29141343]
[1765962933295,0.3867,2933.5,2933.4,3.79471343]
[1765962933493,0.3867,2933.5,2933.4,3.40901343]
[1765962933868,0.001,2933.5,2933.4,3.40901343]
[1765962934305,0.001,2933.5,2933.4,13.47560547]
[1765962934604,0.001,2933.5,2933.4,9.28090108]
[1765962934778,0.001,2933.5,2933.4,13.47560547]
[1765962934977,0.001,2933.5,2933.4,5.49170069]
[1765962935175,0.001,2933.5,2933.4,14.3454897]
[1765962935370,0.001,2933.5,2933.4,5.55057692]
[1765962935576,0.001,2933.5,2933.4,6.09057692]
[1765962936107,0.0002,2933.5,2933.4,8.86420108]
[1765962936306,0.0002,2933.5,2933.4,9.77760108]
[1765962936692,0.0002,2933.5,2933.4,10.34640108]
[1765962936888,0.0002,2933.5,2933.4,6.15169669]
[1765962937087,0.0002,2933.5,2933.4,10.34640108]
[1765962937287,0.0002,2933.5,2933.4,15.4109897]
[1765962937492,0.001,2934.7,2933.4,15.4109897]
[1765962937493,0.33783258,2934.3,2933.5,0.4992]
[1765962937695,0.33783258,2934.3,2933.6,1.24799038]
[1765962938013,4.19470439,2934.5,2933.7,0.54]
[1765962938014,0.1626,2933.8,2933.7,0.54]
[1765962938590,0.3361,2933.7,2933.6,0.54]
[1765962938920,0.1352,2933.9,2933.6,0.54]
[1765962939302,0.46438023,2934.6,2933.6,4.73470439]
[1765962939507,0.3379,2934.4,2933.7,10.22599446]
[1765962941600,0.1626,2933.8,2933.7,3.40866482]
[1765962941806,0.3361,2934.2,2933.7,6.81732964]
[1765962942406,0.3361,2934.2,2933.7,10.22599446]
[1765962943417,0.3361,2934.2,2933.7,10.68969446]
[1765962943593,0.3361,2934.2,2933.7,12.33458269]
[1765962944200,0.001,2933.8,2933.7,6.01645305]
[1765962944894,0.001,2933.8,2933.7,6.48083328]
[1765962945800,0.001,2933.8,2933.7,10.67553767]
[1765962946494,0.001,2933.8,2933.7,10.21115744]
[1765962946913,0.001,2933.8,2933.7,10.20452096]
[1765962947721,0.001,2933.8,2933.7,10.54242096]
[1765962949351,0.001,2933.8,2933.7,15.13599287]
[1765962949646,0.001,2933.8,2933.7,15.61065024]
[1765962950628,0.001,2933.8,2933.7,16.15065024]
[1765962950828,0.001,2933.8,2933.7,11.42258233]
[1765962951433,0.001,2933.8,2933.7,11.96258233]
[1765962951944,0.001,2933.8,2933.7,28.03110624]
[1765962953024,0.001,2933.8,2933.7,18.80656524]
[1765962953207,0.001,2933.8,2933.7,18.52840024]
[1765962954405,0.001,2933.8,2933.7,16.15065024]
[1765962954603,0.001,2933.8,2933.7,11.95230519]
[1765962954842,0.001,2933.8,2933.7,16.1403731]
[1765962956956,0.001,2933.8,2933.7,16.15065024]
[1765962957637,0.001,2933.8,2933.7,11.96258233]
[1765962958255,0.001,2933.8,2933.7,31.15063724]
[1765962960350,0.0002,2933.8,2933.7,30.65143724]
[1765962960544,0.0002,2933.8,2933.7,28.66428124]
[1765962960855,0.0002,2933.8,2933.7,16.14965024]
[1765962961655,0.001,2934.7,2934.6,1.1513]
[1765962961860,0.001,2934.7,2934.6,5.87836791]
[1765962962050,0.001,2934.7,2934.6,6.4662047]
[1765962962355,0.001,2934.7,2934.6,0.13654323]
[1765962962561,0.1636,2934.7,2934.6,3.40761943]
[1765962963259,0.4997,2934.7,2934.6,3.40761943]
[1765962964659,0.0034,2934.5,2934.4,3.40785169]
[1765962965355,0.001,2934.7,2934.4,6.81570338]
[1765962965564,0.001,2934.7,2934.6,0.4579]
[1765962966068,0.1636,2934.7,2934.4,6.81570338]
[1765962966943,0.001,2934.7,2934.4,7.26960338]
[1765962967363,0.001,2934.7,2934.5,0.4539]
[1765962968237,0.001,2934.7,2934.6,0.4579]
[1765962968660,0.001,2934.7,2934.6,3.86551943]
[1765962968838,0.001,2934.7,2934.6,4.75136137]
[1765962969174,0.001,2934.7,2934.6,4.31941943]
[1765962969335,0.001,2934.7,2934.6,3.86551943]
[1765962969534,0.001,2934.7,2934.6,4.31941943]
[1765962969966,0.1636,2934.7,2934.6,3.40761943]
[1765962970850,0.001,2934.7,2934.6,4.31941943]
[1765962971056,0.001,2934.7,2934.6,6.38589855]
[1765962972853,0.001,2934.7,2934.6,5.84689855]
[1765962973054,0.001,2934.7,2934.6,10.57254676]
[1765962975574,0.001,2934.7,2934.6,5.11989966]
[1765962975775,0.001,2934.7,2934.6,5.20499966]
[1765962976479,0.001,2934.7,2934.6,5.65889966]
[1765962976876,0.001,2934.7,2934.6,5.20499966]
[1765962977177,0.3389,2934.7,2934.6,4.41099966]
[1765962977857,0.5015,2934.7,2934.6,3.40761943]
[1765962978062,0.001,2934.7,2934.6,3.86551943]
[1765962978682,0.001,2934.7,2934.6,4.31941943]
[1765962979061,0.21,2934.4,2934.3,3.40994295]
[1765962979479,0.001,2934.7,2934.3,11.13767859]
[1765962980184,0.001,2934.7,2934.3,7.72971077]
[1765962980360,0.001,2934.7,2934.3,7.81481077]
[1765962980989,0.001,2934.7,2934.3,7.27581077]
[1765962981177,0.3389,2934.7,2934.3,7.81581077]
[1765962981858,0.001,2934.7,2934.3,7.81581077]
[1765962983385,0.3389,2934.7,2934.3,7.81581077]
[1765962983584,0.21,2934.4,2934.3,3.94994295]
[1765962984188,0.5458,2934.4,2934.3,3.40994295]
[1765962984391,0.2092,2934.4,2934.3,3.40994295]
[1765962984592,0.001,2934.7,2934.3,10.22587859]
[1765962985088,0.3381,2934.7,2934.3,6.81791077]
[1765962985298,0.2092,2934.4,2934.3,0.002]
[1765962985891,0.3381,2934.7,2934.3,0.002]
[1765962986998,0.545,2934.4,2934.3,0.002]
[1765962988002,0.2092,2934.4,2934.3,0.002]
[1765962988302,0.3358,2934.6,2934.3,0.002]
[1765962988303,0.001,2934.7,2934.6,0.4579]
[1765962988596,0.2102,2934.7,2934.4,0.54]
[1765962989215,0.0021,2934.4,2934.3,0.542]
[1765962989378,0.0021,2934.4,2934.3,3.94996782]
[1765962990803,0.0021,2934.4,2934.3,3.40996782]
[1765962991706,0.3381,2934.7,2934.3,6.81793564]
[1765962993106,0.001,2934.7,2934.3,10.67980346]
[1765962994112,0.001,2934.7,2934.3,7.27183564]
[1765962994313,0.3381,2934.7,2934.3,6.81793564]
[1765962994519,0.001,2934.7,2934.3,11.55726088]
[1765962996318,0.001,2934.7,2934.6,0.4748]
[1765962996516,0.001,2934.7,2934.6,1.489]
[1765962998295,0.001,2934.7,2934.6,4.89661943]
[1765962999419,0.001,2934.7,2934.6,9.08326764]
[1765962999604,0.001,2934.7,2934.6,10.87689503]
[1765963002150,0.001,2934.7,2934.6,15.46904724]
[1765963002555,0.001,2934.7,2934.6,11.28239903]
[1765963002712,0.001,2934.7,2934.6,11.29267617]
[1765963002913,0.001,2934.7,2934.6,15.47932438]
[1765963004346,0.001,2935.9,2934.9,0.405504]
[1765963004517,0.3381,2935.9,2935.2,0.93598023]
[1765963004719,0.3381,2935.9,2935.3,0.54]
[1765963004918,0.001,2935.9,2935.4,6.81338148]
[1765963005337,0.001,2935.9,2935.5,0.54]
[1765963005541,0.001,2935.9,2935.5,1.0116]
[1765963005738,0.001,2935.9,2935.8,0.475]
[1765963005942,0.21,2935.5,2935.4,3.40669074]
[1765963006161,0.21,2935.5,2935.4,3.94669074]
[1765963006558,0.3381,2935.9,2935.4,7.82498148]
[1765963006725,0.3381,2935.9,2935.4,3.94669074]
[1765963006726,0.21,2935.5,2935.4,3.94669074]
[1765963006926,0.3381,2935.9,2935.4,7.35338148]
[1765963007158,0.21,2935.6,2935.5,0.54]
[1765963007823,0.001,2935.9,2935.5,1.015]
[1765963008022,0.001,2935.9,2935.5,1.4866]
[1765963008337,0.0002,2935.9,2935.5,1.4866]
[1765963009022,0.0002,2935.9,2935.6,6.81291728]
[1765963009561,0.21,2935.7,2935.6,3.40645864]
[1765963009767,0.0034,2935.6,2935.5,3.40652134]
[1765963009920,0.3405,2935.6,2935.5,3.40652134]
[1765963010119,0.0002,2935.9,2935.3,0.3371]
[1765963010120,0.5438,2935.4,2935.3,3.74390679]
[1765963010353,0.5438,2935.4,2935.3,3.40680679]
[1765963010553,0.3373,2935.9,2935.0,3.40711968]
[1765963010719,0.21,2935.1,2935.0,3.94711968]
[1765963010919,0.21,2935.1,2935.0,3.40711968]
[1765963011125,0.3405,2935.0,2934.9,3.4072186]
[1765963011354,0.0034,2935.0,2934.9,3.4072186]
[1765963012243,3.85864986,2935.8,2935.1,6.81407788]
[1765963012550,0.80454981,2935.7,2935.2,4.18664821]
[1765963012754,0.45239482,2935.8,2935.2,0.54]
[1765963012755,0.3371,2935.8,2935.2,0.54]
[1765963013051,0.21,2935.4,2935.3,3.40680679]
[1765963014150,0.0002,2935.9,2935.3,7.28861358]
[1765963014355,0.0002,2935.9,2935.3,7.82861358]
[1765963016055,0.0002,2935.9,2935.3,7.28861358]
[1765963016252,0.3358,2935.4,2935.3,3.40680679]
[1765963016458,0.5471,2935.4,2935.3,3.40680679]
[1765963016827,0.0002,2935.9,2935.3,6.81361358]
[1765963017028,0.21,2935.4,2935.3,3.40680679]
[1765963017446,0.0002,2935.9,2935.3,7.28861358]
[1765963018459,0.21,2935.4,2935.3,3.40680679]
[1765963018629,0.21,2935.4,2935.3,3.94680679]
[1765963019332,0.21,2935.4,2935.3,3.40680679]
[1765963019532,0.21,2935.4,2935.3,3.40880679]
[1765963020463,0.0002,2935.9,2935.3,7.29061358]
[1765963020630,0.21,2935.4,2935.3,3.40880679]
[1765963021230,0.21,2935.4,2935.3,0.002]
[1765963023655,0.5458,2935.4,2935.3,0.002]
[1765963025761,0.21,2935.4,2935.3,0.002]
[1765963026071,0.5458,2935.4,2935.3,0.002]
[1765963026466,0.21,2935.4,2935.3,0.002]
[1765963026837,0.5458,2935.4,2935.3,0.002]
[1765963027637,1.0189356,2935.4,2935.3,0.002]
[1765963030338,0.4731356,2935.4,2935.3,0.002]
[1765963030543,0.0002,2935.9,2935.3,0.002]
[1765963032268,0.3365,2936.1,2935.3,6.81561358]
[1765963032570,0.3365,2936.1,2935.3,10.22242037]
[1765963034040,0.3365,2936.1,2935.3,14.40797635]
[1765963034345,0.21,2935.4,2935.3,3.40880679]
[1765963035439,0.21,2935.4,2935.3,3.94880679]
[1765963035635,0.21,2935.4,2935.3,3.40880679]
[1765963035841,0.5446,2935.4,2935.3,3.40880679]
[1765963036235,0.5446,2935.4,2935.3,0.002]
[1765963037240,0.21,2935.4,2935.3,0.002]
[1765963037983,0.2094,2935.4,2935.3,0.002]
[1765963039243,0.5459,2935.4,2935.3,0.002]
[1765963039444,0.001,2935.9,2935.3,0.4824]
[1765963039686,0.3365,2935.4,2935.3,0.002]
[1765963039987,4.39635598,2935.4,2935.3,0.002]
[1765963040153,1.11481583,2935.4,2935.3,0.002]
[1765963040341,4.39635598,2935.4,2935.3,0.002]
[1765963040543,7.80304672,2935.4,2935.3,0.002]
[1765963041553,0.0021,2934.5,2934.4,0.002]
[1765963042181,0.3365,2934.7,2934.4,0.542]
[1765963042479,0.3365,2934.7,2934.5,6.8154711]
[1765963042780,0.2114,2934.6,2934.5,3.40773555]
[1765963043691,0.5466,2934.6,2934.5,3.40773555]
[1765963044258,0.0034,2934.5,2934.4,3.40984593]
[1765963044596,0.3399,2934.5,2934.4,3.40984593]
[1765963044979,0.3399,2934.5,2934.4,0.002]
[1765963045311,0.7924456,2934.5,2934.4,0.002]
[1765963045977,0.3399,2934.5,2934.4,0.002]
[1765963047579,0.5466,2934.5,2934.4,0.002]
[1765963056174,0.5458,2934.5,2934.4,0.002]
[1765963056899,0.2106,2934.5,2934.4,0.002]
[1765963057084,0.5458,2934.5,2934.4,0.002]
[1765963057790,6.46,2934.7,2934.4,0.002]
[1765963058302,0.2106,2934.5,2934.4,0.002]
[1765963059094,0.545,2934.5,2934.4,0.002]
[1765963059285,0.545,2934.5,2934.4,3.40985169]
[1765963060488,6.46,2934.7,2934.4,6.81770338]
[1765963060677,0.3357,2934.5,2934.4,3.40985169]
[1765963061202,0.5463,2934.5,2934.4,0.002]
[1765963061506,0.3357,2934.5,2934.4,0.002]
[1765963061905,0.5463,2934.5,2934.4,0.002]
[1765963062086,0.3357,2934.5,2934.4,0.002]
[1765963064106,6.46,2934.7,2934.4,3.90025169]
[1765963064302,6.46,2934.7,2934.4,8.55472398]
[1765963064688,6.46,2934.7,2934.4,8.09312398]
[1765963064875,6.46,2934.7,2934.5,0.4616]
[1765963065276,6.46,2934.7,2934.4,8.06432398]
[1765963065899,3.40681425,2935.3,2934.6,0.952]
[1765963065900,0.3357,2935.3,2934.6,0.952]
[1765963066081,0.3357,2935.3,2934.8,6.81477442]
[1765963066412,0.3357,2935.3,2934.8,4.43778721]
[1765963066413,0.4412,2935.3,2934.8,4.43778721]
[1765963066709,0.4412,2935.3,2934.8,4.89938721]
[1765963066906,0.4412,2935.3,2934.8,11.25256163]
[1765963067080,0.4412,2935.3,2934.8,12.42397779]
[1765963067517,0.4412,2935.3,2934.8,12.88557779]
[1765963067817,0.4412,2935.3,2934.8,12.42397779]
[1765963068033,0.001,2935.4,2934.9,0.4616]
[1765963068182,0.001,2935.4,2935.0,7.27591004]
[1765963068386,0.001,2935.4,2935.0,11.58179768]
[1765963068710,0.001,2935.4,2935.0,15.30575366]
[1765963068915,0.001,2935.4,2935.3,0.952]
[1765963069082,0.001,2935.4,2935.3,1.492]
[1765963069282,0.001,2935.4,2935.3,5.67755598]
[1765963069482,0.001,2935.4,2935.3,6.26351158]
[1765963070414,0.001,2935.4,2935.3,9.67031837]
[1765963071109,0.001,2935.4,2935.3,9.20871837]
[1765963071312,0.001,2935.4,2935.3,9.67031837]
[1765963072894,0.001,2935.4,2935.3,9.13031837]
[1765963073086,0.001,2935.4,2935.3,9.67031837]
[1765963073285,0.001,2935.4,2935.3,5.48476239]
[1765963073488,0.001,2935.4,2935.3,9.67031837]
[1765963074295,0.001,2935.4,2935.3,9.20871837]
[1765963074616,0.001,2935.4,2935.3,9.67031837]
[1765963075990,0.001,2935.4,2935.3,10.1346986]
[1765963076292,0.001,2935.4,2935.3,10.55047974]
[1765963079126,0.001,2935.4,2935.3,10.68695216]
[1765963079299,0.001,2935.4,2935.3,10.14695216]
[1765963079505,0.001,2935.4,2935.3,10.68695216]